bitfinex-derivatives/quotes_SOLF0:USTF0_20250421
["timestamp","ask_amount","ask_price","bid_price","bid_amount"]
[1745249755149,1.9313,138.87,138.8,28.64]
[1745249755448,7.2015,138.83,138.8,28.64]
[1745249755650,1.9313,138.87,138.8,28.64]
[1745249755844,28.64,138.89,138.8,28.64]
[1745249756044,7.1997,138.87,138.84,7.2009]
[1745249756347,0.04984346,138.87,138.84,0.05409964]
[1745249756647,7.2004,138.85,138.84,0.05409964]
[1745249759053,19.1867233,138.86,138.8,28.64]
[1745249759248,19.1867233,138.86,138.75,17.0839233]
[1745249759249,17.0839233,138.84,138.77,28.64]
[1745249759646,7.2022,138.82,138.77,28.64]
[1745249759850,7.2022,138.82,138.78,7.2037]
[1745249760048,17.0839233,138.84,138.77,28.64]
[1745249760349,0.04811289,138.81,138.79,0.04898734]
[1745249760553,17.0839233,138.82,138.79,0.04898734]
[1745249760749,24.2869233,138.8,138.79,0.04898734]
[1745249761351,7.203,138.8,138.79,0.04898734]
[1745249762956,24.2869233,138.8,138.79,0.04898734]
[1745249763254,17.0839233,138.8,138.74,34.7074]
[1745249763454,17.0839233,138.8,138.74,41.9135]
[1745249763656,7.2048,138.77,138.74,41.9135]
[1745249763853,17.0839233,138.8,138.74,28.64]
[1745249764051,45.6839233,138.8,138.74,28.64]
[1745249764247,17.13497524,138.78,138.76,0.05256409]
[1745249764658,17.13497524,138.78,138.71,28.6]
[1745249764956,0.05105194,138.78,138.74,7.2058]
[1745249765355,7.25545194,138.78,138.74,7.2058]
[1745249765857,0.05105194,138.78,138.71,28.6]
[1745249766055,17.0839233,138.77,138.71,28.6]
[1745249766355,7.2061,138.74,138.71,35.8076]
[1745249766755,0.05220677,138.74,138.71,35.8076]
[1745249766955,17.0839233,138.73,138.63,1.25455135]
[1745249767157,17.0839233,138.71,138.64,28.6]
[1745249767455,0.05363684,138.69,138.64,36.18343199]
[1745249768047,0.05363684,138.69,138.64,28.6]
[1745249769361,0.05363684,138.69,138.64,35.8111]
[1745249769750,17.13756014,138.69,138.64,28.6]
[1745249770058,7.2105,138.66,138.64,28.6]
[1745249770654,7.2108,138.65,138.64,28.6]
[1745249771258,7.25691598,138.66,138.64,28.6]
[1745249771757,0.04651598,138.66,138.64,28.6]
[1745249772457,7.25691598,138.66,138.64,28.6]
[1745249772662,0.04651598,138.66,138.64,28.6]
[1745249772854,28.6,138.72,138.64,28.6]
[1745249773157,17.0839233,138.71,138.64,28.6]
[1745249773460,7.2095,138.68,138.65,7.2105]
[1745249773654,17.0839233,138.71,138.64,28.6]
[1745249773850,17.0839233,138.69,138.64,28.6]
[1745249774160,7.2097,138.67,138.66,0.05135756]
[1745249774364,17.0839233,138.67,138.61,34.6826]
[1745249774654,17.0839233,138.69,138.61,34.6826]
[1745249774957,7.2086,138.7,138.67,7.2094]
[1745249775160,17.0839233,138.73,138.65,28.62]
[1745249775557,17.0839233,138.69,138.62,28.62]
[1745249775960,7.2108,138.65,138.62,35.832]
[1745249776152,7.2108,138.65,138.62,7.212]
[1745249776357,17.13877033,138.67,138.61,28.62]
[1745249776664,7.2119,138.63,138.61,28.62]
[1745249777062,0.05249411,138.63,138.61,35.8327]
[1745249777260,0.05249411,138.63,138.61,28.62]
[1745249777660,7.26459411,138.63,138.61,28.62]
[1745249777859,0.05249411,138.63,138.61,28.62]
[1745249778259,0.05249411,138.63,138.62,7.2123]
[1745249780057,56.06120931,138.7,138.61,28.62]
[1745249780058,62.07550931,138.73,138.61,28.62]
[1745249780262,28.64,138.73,138.63,27.44120931]
[1745249780465,7.2079,138.71,138.68,7.2088]
[1745249781263,7.25326259,138.71,138.68,7.2548406]
[1745249781464,0.04536259,138.71,138.68,0.0460406]
[1745249781862,0.04536259,138.71,138.64,28.64]
[1745249782062,27.44120931,138.69,138.63,7.2116]
[1745249782257,27.44120931,138.69,138.62,28.64]
[1745249782463,7.2118,138.63,138.6,7.2131]
[1745249782866,7.2118,138.63,138.59,32.6061]
[1745249783066,7.2124,138.62,138.59,32.6061]
[1745249783258,7.2124,138.62,138.59,30.6336]
[1745249783765,7.2124,138.62,138.59,37.8471]
[1745249783968,7.2124,138.62,138.59,30.6336]
[1745249784169,0.05097865,138.63,138.59,28.64]
[1745249784371,27.49218796,138.63,138.56,28.64]
[1745249784669,0.05097865,138.63,138.56,28.64]
[1745249784869,0.05097865,138.63,138.56,30.5802]
[1745249785170,7.2128,138.62,138.59,7.2137]
[1745249785571,0.05097865,138.63,138.6,28.64]
[1745249787369,0.05097865,138.63,138.61,7.2123]
[1745249787564,0.05097865,138.63,138.6,28.64]
[1745249787871,0.05097865,138.63,138.61,7.2128]
[1745249788266,0.05097865,138.63,138.6,28.64]
[1745249788468,27.44120931,138.69,138.6,28.64]
[1745249788667,27.44120931,138.69,138.61,1.925]
[1745249788975,7.2095,138.68,138.65,7.2105]
[1745249789277,27.44120931,138.69,138.64,28.64]
[1745249789577,7.21,138.67,138.64,35.851]
[1745249789774,7.21,138.67,138.65,0.04650349]
[1745249790077,0.04841886,138.68,138.65,0.04650349]
[1745249790277,0.04841886,138.68,138.66,7.21]
[1745249790978,0.04841886,138.68,138.65,0.04650349]
[1745249791680,0.04841886,138.68,138.67,7.2097]
[1745249792881,27.44120931,138.75,138.65,0.04650349]
[1745249793184,27.44120931,138.75,138.64,28.64]
[1745249793581,7.2068,138.73,138.7,7.2078]
[1745249793881,0.0466333,138.73,138.7,0.04590055]
[1745249794181,0.0466333,138.73,138.72,7.2071]
[1745249794485,28.6,138.8,138.71,2.0471]
[1745249794780,7.2042,138.78,138.75,7.2051]
[1745249794983,28.6,138.8,138.74,28.6]
[1745249795186,27.44120931,138.81,138.74,28.6]
[1745249795685,0.05251542,138.79,138.76,0.04609331]
[1745249795882,7.2045,138.77,138.76,0.04609331]
[1745249796188,0.05251542,138.79,138.76,0.04609331]
[1745249796487,7.2043,138.78,138.76,0.04609331]
[1745249797285,7.2045,138.77,138.76,0.04609331]
[1745249798283,0.05251542,138.79,138.76,0.04609331]
[1745249799283,7.2045,138.77,138.76,0.04609331]
[1745249799783,7.2042,138.78,138.76,0.04609331]
[1745249800385,0.05251542,138.79,138.76,0.04609331]
[1745249800386,7.2045,138.77,138.76,0.04609331]
[1745249801280,27.44120931,138.78,138.7,28.6]
[1745249801582,27.44120931,138.75,138.69,7.2086]
[1745249801782,28.6,138.74,138.68,28.6]
[1745249801985,28.6,138.74,138.65,30.6689]
[1745249802377,0.04598645,138.71,138.68,0.04728797]
[1745249802575,0.04598645,138.71,138.7,7.2082]
[1745249803079,0.04598645,138.71,138.69,35.8087]
[1745249803284,0.04598645,138.71,138.69,28.6]
[1745249803784,7.25388645,138.71,138.69,28.6]
[1745249804490,7.2082,138.7,138.69,28.6]
[1745249804682,0.04598645,138.71,138.68,0.04728797]
[1745249805087,7.2087,138.69,138.68,0.04728797]
[1745249808184,7.21,138.67,138.64,7.2111]
[1745249808388,27.44120931,138.7,138.63,28.6]
[1745249808589,7.2102,138.67,138.63,35.8116]
[1745249809293,7.2102,138.67,138.64,7.26312971]
[1745249809294,0.04789909,138.66,138.64,7.26312971]
[1745249809892,7.25859909,138.66,138.64,0.05232971]
[1745249810288,7.2108,138.65,138.64,0.05232971]
[1745249810987,7.25839909,138.66,138.64,0.05232971]
[1745249812196,0.04789909,138.66,138.64,0.05232971]
[1745249812895,0.04789909,138.66,138.65,7.2108]
[1745249813096,56.04120931,138.72,138.64,0.05232971]
[1745249813295,27.44120931,138.72,138.64,0.05232971]
[1745249813692,7.2087,138.69,138.66,7.21]
[1745249813997,27.44120931,138.72,138.63,28.6]
[1745249814187,27.44120931,138.68,138.61,1.9628]
[1745249814386,27.44120931,138.68,138.66,0.05306152]
[1745249814592,27.44120931,138.68,138.61,1.9628]
[1745249814787,7.2097,138.67,138.66,0.05135575]
[1745249814991,27.48780502,138.68,138.62,7.212]
[1745249815194,27.48780502,138.68,138.65,0.05265679]
[1745249815595,7.2102,138.66,138.65,0.05265679]
[1745249817797,27.48780502,138.68,138.6,28.6]
[1745249817994,34.5415,138.67,138.6,28.6]
[1745249818699,7.2121,138.63,138.6,28.6]
[1745249818899,0.046427,138.65,138.62,0.05492987]
[1745249819498,7.257527,138.65,138.62,0.05492987]
[1745249819894,7.257527,138.65,138.62,7.26702987]
[1745249820092,0.046427,138.65,138.62,0.05492987]
[1745249820499,27.44120931,138.72,138.62,0.05492987]
[1745249820694,34.7298,138.74,138.61,27.44120931]
[1745249820897,7.2079,138.71,138.62,6.1224]
[1745249821097,34.7298,138.74,138.68,7.2089]
[1745249821401,7.2082,138.71,138.68,7.2089]
[1745249821695,7.25828439,138.71,138.68,7.25461177]
[1745249821998,0.05008439,138.71,138.68,0.04571177]
[1745249822691,0.05008439,138.71,138.61,14.4251]
[1745249822692,21.57,138.68,138.46,33.82403948]
[1745249822896,27.44120931,138.53,138.47,7.27723592]
[1745249823101,7.2178,138.52,138.47,5.9526]
[1745249823299,27.44120931,138.53,138.47,5.9526]
[1745249823997,27.44120931,138.53,138.49,0.05174173]
[1745249823998,0.05295726,138.51,138.49,0.05174173]
[1745249825695,7.27115726,138.51,138.49,0.05174173]
[1745249825895,0.05295726,138.51,138.49,0.05174173]
[1745249826704,7.27125726,138.51,138.49,0.05174173]
[1745249828605,0.05295726,138.51,138.49,0.05174173]
[1745249829606,27.44120931,138.56,138.49,0.05174173]
[1745249829906,7.2168,138.54,138.49,28.65174173]
[1745249830805,0.05017419,138.53,138.49,28.65174173]
[1745249831099,0.05017419,138.53,138.49,0.05174173]
[1745249831605,7.218,138.52,138.49,0.05174173]
[1745249831806,0.05017419,138.53,138.49,0.05174173]
[1745249832801,7.2179,138.52,138.49,0.05174173]
[1745249832996,0.05017419,138.53,138.49,0.05174173]
[1745249834811,0.05017419,138.53,138.49,7.27074173]
[1745249835414,7.26717419,138.53,138.49,0.05174173]
[1745249835714,0.05017419,138.53,138.49,0.05174173]
[1745249835913,0.05017419,138.53,138.49,7.27054173]
[1745249836812,0.05017419,138.53,138.5,7.2185]
[1745249837316,0.05017419,138.53,138.51,7.218]
[1745249837615,27.44120931,138.59,138.51,28.6]
[1745249837920,34.65510931,138.59,138.55,7.2157]
[1745249838112,28.6,138.64,138.55,28.6]
[1745249838716,0.04829672,138.6,138.58,0.04725319]
[1745249838917,7.26209672,138.6,138.58,0.04725319]
[1745249839118,0.04829672,138.6,138.58,0.04725319]
[1745249843119,0.04829672,138.6,138.55,28.6]
[1745249843521,27.44120931,138.57,138.55,28.6]
[1745249843816,27.44120931,138.57,138.51,600.12]
[1745249844119,27.44120931,138.57,138.52,7.2172]
[1745249844319,0.04988694,138.55,138.53,0.05093947]
[1745249844519,7.2165,138.54,138.53,0.05093947]
[1745249845520,34.65770931,138.54,138.53,0.05093947]
[1745249845717,27.44120931,138.54,138.53,0.05093947]
[1745249846024,27.44120931,138.54,138.4,772.0]
[1745249846222,7.2188,138.5,138.45,28.6]
[1745249846623,27.44120931,138.51,138.45,28.6]
[1745249847117,27.44120931,138.51,138.45,35.8208]
[1745249847322,0.04759384,138.49,138.47,0.04563709]
[1745249847522,7.26699384,138.49,138.47,0.04563709]
[1745249848524,0.04759384,138.49,138.47,0.04563709]
[1745249850123,0.04759384,138.49,138.48,7.2196]
[1745249850619,0.04759384,138.49,138.47,7.26563709]
[1745249850823,0.04759384,138.49,138.47,0.04563709]
[1745249851423,7.2196,138.48,138.47,0.04563709]
[1745249851624,0.04759384,138.49,138.47,0.04563709]
[1745249851824,7.26709384,138.49,138.47,0.04563709]
[1745249852024,0.04759384,138.49,138.47,0.04563709]
[1745249852424,7.2196,138.48,138.47,0.04563709]
[1745249852730,0.04759384,138.49,138.47,0.04563709]
[1745249853126,7.2196,138.48,138.47,0.04563709]
[1745249854927,0.04759384,138.49,138.47,0.04563709]
[1745249855324,0.04759384,138.49,138.47,7.26553709]
[1745249856033,7.26679384,138.49,138.47,7.26553709]
[1745249856327,0.04759384,138.49,138.47,7.26553709]
[1745249857430,0.04759384,138.49,138.48,7.2196]
[1745249858530,27.44120931,138.54,138.5,7.2185]
[1745249858932,7.2178,138.52,138.45,28.6]
[1745249859134,27.44120931,138.54,138.49,7.2186]
[1745249859330,27.44120931,138.54,138.45,28.6]
[1745249859529,7.2184,138.51,138.48,7.2191]
[1745249859734,7.27073553,138.51,138.48,7.27391549]
[1745249859934,7.27073553,138.51,138.48,0.05481549]
[1745249860932,0.05233553,138.51,138.48,0.05481549]
[1745249861234,0.05233553,138.51,138.49,28.6]
[1745249862135,0.05233553,138.51,138.5,7.2186]
[1745249862433,56.04120931,138.57,138.49,28.6]
[1745249862830,7.2164,138.55,138.52,7.2172]
[1745249863441,0.04768944,138.55,138.52,0.04556935]
[1745249864034,7.217,138.53,138.52,0.04556935]
[1745249864235,0.04768944,138.55,138.52,0.04556935]
[1745249864536,7.2169,138.54,138.52,0.04556935]
[1745249865034,0.04768944,138.55,138.52,0.04556935]
[1745249865337,7.2165,138.54,138.52,0.04556935]
[1745249865738,0.04768944,138.55,138.52,0.04556935]
[1745249865938,7.217,138.53,138.52,0.04556935]
[1745249873838,0.04768944,138.55,138.52,0.04556935]
[1745249874337,0.04768944,138.55,138.53,28.6]
[1745249874539,28.6,138.61,138.53,28.6]
[1745249874739,28.6,138.64,138.53,28.6]
[1745249874934,7.2133,138.61,138.53,28.6]
[1745249875241,7.2133,138.61,138.58,7.214]
[1745249875740,7.2135,138.6,138.58,7.2640379]
[1745249875941,0.05477636,138.61,138.58,7.2640379]
[1745249876243,7.26797636,138.61,138.59,7.2139]
[1745249876442,0.05477636,138.61,138.58,0.0500379]
[1745249876743,0.05477636,138.61,138.6,7.2134]
[1745249877946,0.05477636,138.61,138.58,2.1274379]
[1745249878645,0.05477636,138.61,138.58,9.3415379]
[1745249878646,7.26777636,138.61,138.58,9.3415379]
[1745249879047,7.26777636,138.61,138.58,2.1274379]
[1745249879748,7.2134,138.6,138.58,2.1274379]
[1745249880250,7.2134,138.6,138.58,9.3416379]
[1745249880451,0.05477636,138.61,138.58,2.1274379]
[1745249880750,0.05477636,138.61,138.6,7.2134]
[1745249880946,0.05477636,138.61,138.58,6.0811379]
[1745249881350,27.44120931,138.66,138.58,6.0811379]
[1745249881743,29.52720931,138.69,138.58,6.0811379]
[1745249881947,29.52720931,138.69,138.64,7.211]
[1745249882250,7.2103,138.66,138.63,28.6]
[1745249882549,7.26576601,138.66,138.63,7.25937018]
[1745249882851,0.05546601,138.66,138.64,7.211]
[1745249883448,0.05546601,138.66,138.65,7.2108]
[1745249884347,7.2085,138.7,138.68,7.2092]
[1745249884755,7.2085,138.7,138.66,28.58]
[1745249884950,7.2085,138.7,138.67,7.2094]
[1745249885554,7.26244482,138.7,138.67,7.25540354]
[1745249887255,7.2087,138.69,138.67,7.25540354]
[1745249887850,7.26224482,138.7,138.67,7.25540354]
[1745249888863,0.05394482,138.7,138.67,0.04600354]
[1745249889053,7.06344905,138.79,138.67,4.17740354]
[1745249889248,3.939,138.79,138.67,4.1314]
[1745249889450,7.2057,138.75,138.72,7.2067]
[1745249889654,7.2057,138.75,138.72,35.7667]
[1745249890052,7.2062,138.74,138.72,28.56]
[1745249890253,0.05191518,138.75,138.72,0.05470334]
[1745249890756,7.25781518,138.75,138.72,7.26170334]
[1745249891057,0.05191518,138.75,138.72,7.26170334]
[1745249892258,7.2061,138.74,138.72,7.26170334]
[1745249892557,0.05191518,138.75,138.72,7.26170334]
[1745249892956,7.25781518,138.75,138.72,7.26170334]
[1745249894256,0.05191518,138.75,138.73,7.2066]
[1745249894859,7.25771518,138.75,138.72,7.26160334]
[1745249895059,17.18133977,138.75,138.72,0.05470334]
[1745249895459,17.12942459,138.73,138.72,0.05470334]
[1745249895959,24.33602459,138.73,138.72,0.05470334]
[1745249896860,7.2077,138.71,138.69,35.7685]
[1745249897060,17.12942459,138.71,138.69,28.56]
[1745249897262,7.2082,138.7,138.67,11.3409]
[1745249897562,7.2082,138.7,138.67,9.2971]
[1745249897763,7.2082,138.7,138.67,2.0876]
[1745249897965,7.25861807,138.7,138.67,2.13874765]
[1745249898360,7.25861807,138.7,138.67,9.34814765]
[1745249898863,7.25861807,138.7,138.67,2.13874765]
[1745249899063,7.25861807,138.7,138.67,9.34824765]
[1745249899364,7.25861807,138.7,138.67,2.13874765]
[1745249899663,0.05041807,138.7,138.69,7.2087]
[1745249902464,27.42637134,138.76,138.67,2.13874765]
[1745249902663,27.42637134,138.76,138.67,2.0876]
[1745249903560,0.04955779,138.73,138.7,0.04608418]
[1745249903769,0.04955779,138.73,138.7,28.60608418]
[1745249904264,27.47592913,138.73,138.7,0.04608418]
[1745249904465,7.2076,138.71,138.7,0.04608418]
[1745249904865,27.47592913,138.73,138.7,0.04608418]
[1745249905066,27.47592913,138.73,138.7,7.25398418]
[1745249905369,27.47592913,138.73,138.7,0.04608418]
[1745249905670,7.2071,138.72,138.7,0.04608418]
[1745249905870,27.47592913,138.73,138.7,0.04608418]
[1745249906072,0.04955779,138.73,138.72,7.2071]
[1745249912576,7.25615779,138.73,138.71,35.7475]
[1745249912780,27.47592913,138.73,138.7,0.04608418]
[1745249913279,7.2076,138.71,138.7,0.04608418]
[1745249914484,27.42637134,138.72,138.64,28.52]
[1745249914675,27.42637134,138.68,138.64,28.52]
[1745249914875,27.42637134,138.68,138.62,578.4321]
[1745249915381,7.211,138.65,138.62,578.4321]
[1745249915678,0.04957995,138.66,138.64,0.05334069]
[1745249915882,7.2108,138.65,138.64,0.05334069]
[1745249916272,0.04957995,138.66,138.64,0.05334069]
[1745249916471,7.2108,138.65,138.64,0.05334069]
[1745249919774,0.04957995,138.66,138.64,0.05334069]
[1745249920277,0.04957995,138.66,138.65,7.2108]
[1745249921180,0.04957995,138.66,138.64,7.26454069]
[1745249921383,0.04957995,138.66,138.64,0.05334069]
[1745249921879,0.04957995,138.66,138.65,7.2108]
[1745249922180,0.04957995,138.66,138.64,0.05334069]
[1745249922981,7.26007995,138.66,138.64,7.26454069]
[1745249923180,0.04957995,138.66,138.64,0.05334069]
[1745249923583,0.04957995,138.66,138.64,7.26434069]
[1745249926882,7.26007995,138.66,138.64,7.26434069]
[1745249927180,0.04957995,138.66,138.64,7.26434069]
[1745249928681,0.04957995,138.66,138.65,7.2108]
[1745249930186,27.44326793,138.75,138.65,28.54]
[1745249930380,7.2064,138.74,138.66,4.1942]
[1745249930579,28.54,138.76,138.66,4.1942]
[1745249930773,31.34166793,138.78,138.66,4.1942]
[1745249930974,7.2064,138.74,138.66,4.1942]
[1745249931174,0.05004787,138.73,138.71,0.04850065]
[1745249931681,0.05004787,138.73,138.71,7.25580065]
[1745249931987,7.25674787,138.73,138.71,7.25580065]
[1745249932780,0.05004787,138.73,138.71,7.25580065]
[1745249933085,0.05004787,138.73,138.72,7.2071]
[1745249933785,0.05004787,138.73,138.71,7.25600065]
[1745249939890,0.05004787,138.73,138.72,7.2071]
[1745249940486,0.05004787,138.73,138.71,0.04850065]
[1745249940487,7.2052,138.76,138.74,7.2058]
[1745249940789,28.54,138.79,138.74,7.2058]
[1745249940991,7.2048,138.77,138.74,7.2058]
[1745249941189,7.2048,138.77,138.7,28.54]
[1745249941190,28.54,138.79,138.73,7.2063]
[1745249941390,28.54,138.79,138.7,28.54]
[1745249941590,0.04593576,138.76,138.73,0.05235726]
[1745249941791,0.04593576,138.76,138.74,7.2058]
[1745249942089,7.25103576,138.76,138.74,7.2058]
[1745249943589,7.25103576,138.76,138.73,7.25875726]
[1745249944091,7.2059,138.75,138.73,0.05235726]
[1745249944293,0.04593576,138.76,138.73,0.05235726]
[1745249944890,7.2056,138.75,138.73,0.05235726]
[1745249945082,0.04593576,138.76,138.73,0.05235726]
[1745249945391,17.12707992,138.75,138.73,0.05235726]
[1745249945592,7.2061,138.74,138.73,0.05235726]
[1745249945886,0.04593576,138.76,138.73,0.05235726]
[1745249946189,0.04593576,138.76,138.74,7.2058]
[1745249946487,0.04593576,138.76,138.73,0.05235726]
[1745249946692,0.04593576,138.76,138.75,7.2056]
[1745249947991,0.04593576,138.76,138.73,0.05235726]
[1745249948183,17.12707992,138.75,138.73,0.05235726]
[1745249948489,7.2061,138.74,138.73,0.05235726]
[1745249948689,17.12707992,138.73,138.68,28.52]
[1745249949084,17.12707992,138.71,138.68,28.52]
[1745249949390,17.12707992,138.69,138.65,28.52]
[1745249949589,24.33707992,138.67,138.65,28.52]
[1745249949786,7.21,138.67,138.66,0.04858803]
[1745249951297,24.33707992,138.67,138.66,0.04858803]
[1745249952698,17.12707992,138.67,138.66,0.04858803]
[1745249953696,0.05116088,138.68,138.66,0.04858803]
[1745249954600,0.05116088,138.68,138.67,7.2097]
[1745249955798,0.05116088,138.68,138.66,0.04858803]
[1745249956005,17.12707992,138.67,138.66,0.04858803]
[1745249956195,0.05116088,138.68,138.66,0.04858803]
[1745249956798,0.05116088,138.68,138.67,7.2097]
[1745249956999,0.05116088,138.68,138.66,0.04858803]
[1745249957402,0.05116088,138.68,138.66,7.25868803]
[1745249958195,0.05116088,138.68,138.66,0.04858803]
[1745249958401,17.12707992,138.67,138.66,0.04858803]
[1745249959602,24.33677992,138.67,138.66,0.04858803]
[1745249959798,17.12707992,138.67,138.66,0.04858803]
[1745249960103,17.12707992,138.67,138.66,7.25878803]
[1745249960399,7.26046088,138.68,138.66,7.25878803]
[1745249962204,7.2097,138.67,138.66,0.04858803]
[1745249963603,24.33677992,138.67,138.66,0.04858803]
[1745249964604,17.12707992,138.67,138.6,1.9781]
[1745249964803,17.12707992,138.64,138.6,1.9781]
[1745249965297,17.12707992,138.68,138.6,1.9781]
[1745249965497,17.12707992,138.68,138.63,7.2115]
[1745249965498,7.2105,138.66,138.63,7.2115]
[1745249965699,0.04987423,138.65,138.63,7.26650676]
[1745249966605,0.04987423,138.65,138.64,7.2113]
[1745249971201,1.9708,138.71,138.64,7.2113]
[1745249971202,17.12707992,138.74,138.64,17.12707992]
[1745249971400,17.12707992,138.74,138.64,19.07727992]
[1745249971600,17.12707992,138.74,138.7,7.2082]
[1745249972202,0.04889634,138.73,138.7,7.2082]
[1745249972507,0.04889634,138.73,138.71,0.04851875]
[1745249972909,7.25569634,138.73,138.71,0.04851875]
[1745249974210,7.2071,138.72,138.71,0.04851875]
[1745249975316,17.12707992,138.72,138.66,28.5]
[1745249975506,17.12707992,138.7,138.66,28.5]
[1745249976013,7.2091,138.69,138.66,35.71]
[1745249976309,17.12707992,138.7,138.66,35.71]
[1745249976310,17.12707992,138.7,138.66,28.54974568]
[1745249976509,17.12707992,138.68,138.66,28.54974568]
[1745249976714,17.12707992,138.68,138.66,28.5]
[1745249977012,17.17797631,138.68,138.66,28.54953307]
[1745249977314,7.2097,138.67,138.66,28.54953307]
[1745249978514,7.2097,138.67,138.66,0.04953307]
[1745249980713,24.38737631,138.68,138.66,0.04953307]
[1745249982017,7.2097,138.67,138.66,0.04953307]
[1745249982620,24.38727631,138.68,138.66,0.04953307]
[1745249982816,0.05089639,138.68,138.66,0.04953307]
[1745249984019,0.05089639,138.68,138.67,7.2097]
[1745249984321,0.05089639,138.68,138.66,0.04953307]
[1745249984819,0.05089639,138.68,138.67,7.2097]
[1745249985119,0.05089639,138.68,138.66,0.04953307]
[1745249985419,7.26009639,138.68,138.66,7.25953307]
[1745249986019,0.05089639,138.68,138.66,7.25953307]
[1745249986622,0.05089639,138.68,138.67,7.2097]
[1745249987123,17.12707992,138.74,138.67,28.5]
[1745249987322,17.12707992,138.74,138.68,2.0193]
[1745249987719,17.12707992,138.74,138.69,7.2084]
[1745249987918,7.2075,138.72,138.69,7.2084]
[1745249988122,7.2075,138.72,138.7,0.05324285]
[1745249988323,0.04711518,138.73,138.7,0.05324285]
[1745249988822,0.04711518,138.73,138.72,7.2071]
[1745249989424,45.62707992,138.78,138.71,28.5]
[1745249989724,17.12707992,138.76,138.71,28.5]
[1745249990520,7.25203366,138.75,138.72,7.25414539]
[1745249990724,0.04603366,138.75,138.72,0.04734539]
[1745249991023,7.2066,138.73,138.72,0.04734539]
[1745249992224,17.12707992,138.74,138.68,30.5193]
[1745249992420,17.12707992,138.72,138.68,30.5193]
[1745249992623,24.33427992,138.72,138.7,7.2079]
[1745249993325,24.38556283,138.72,138.7,7.25340218]
[1745249994927,7.25848291,138.72,138.7,7.25340218]
[1745249996622,0.05128291,138.72,138.71,7.2076]
[1745250001233,0.05128291,138.72,138.7,0.04550218]
[1745250001438,17.17836283,138.72,138.7,0.04550218]
[1745250002338,7.2076,138.71,138.7,0.04550218]
[1745250003435,0.05128291,138.72,138.7,0.04550218]
[1745250005239,0.05128291,138.72,138.71,7.2076]
[1745250005539,17.17836283,138.72,138.7,0.04550218]
[1745250005737,7.2076,138.71,138.7,0.04550218]
[1745250007034,17.17836283,138.72,138.64,1.9493]
[1745250007237,17.12707992,138.69,138.65,28.48]
[1745250008140,7.2096,138.68,138.65,28.48]
[1745250008341,7.25760336,138.68,138.66,0.05390462]
[1745250009036,0.04800336,138.68,138.66,0.05390462]
[1745250010041,17.12707992,138.74,138.66,0.05390462]
[1745250010243,17.12707992,138.74,138.65,45.60707992]
[1745250010543,7.207,138.73,138.7,7.2078]
[1745250010743,17.12707992,138.74,138.69,28.48]
[1745250011138,24.33357992,138.74,138.71,7.2072]
[1745250011339,0.05357586,138.73,138.7,0.04985655]
[1745250012942,7.2075,138.72,138.7,0.04985655]
[1745250013542,7.2075,138.72,138.7,7.25785655]
[1745250014445,0.05357586,138.73,138.71,7.2074]
[1745250014736,0.05357586,138.73,138.7,0.04985655]
[1745250014933,0.05357586,138.73,138.72,7.2071]
[1745250015139,0.05357586,138.73,138.7,0.04985655]
[1745250016846,0.05357586,138.73,138.71,7.2072]
[1745250017349,7.26027586,138.73,138.71,7.2072]
[1745250018144,34.25415984,138.72,138.62,361.0]
[1745250018345,17.12707992,138.67,138.63,28.48]
[1745250018646,17.12707992,138.65,138.64,7.211]
[1745250019047,24.33797992,138.65,138.63,28.48]
[1745250019244,24.33797992,138.65,138.63,28.52853083]
[1745250020250,24.33797992,138.65,138.63,35.74023083]
[1745250020549,24.33797992,138.65,138.63,28.52853083]
[1745250020951,24.33797992,138.65,138.63,35.74023083]
[1745250021453,0.04740768,138.66,138.63,28.52853083]
[1745250021652,0.04740768,138.66,138.63,35.74013083]
[1745250021853,7.25810768,138.66,138.63,35.74013083]
[1745250022147,0.04740768,138.66,138.65,7.2108]
[1745250023348,0.04740768,138.66,138.64,7.211]
[1745250023653,0.04740768,138.66,138.63,28.52853083]
[1745250023851,7.2113,138.64,138.63,28.52853083]
[1745250024249,7.2113,138.64,138.63,0.04853083]
[1745250027553,17.12707992,138.65,138.63,0.04853083]
[1745250028558,24.33807992,138.65,138.63,7.26023083]
[1745250028955,24.33807992,138.65,138.63,0.04853083]
[1745250029152,7.2113,138.64,138.63,0.04853083]